{"text_format":"1","workbook":"xlsx","n_sheets":2,"sheets":["Génie-TI","Instructions"],"not_rendered":{"charts":0,"images":0,"macros":0,"external_links":0,"defined_names":3,"comments":1,"pivot_tables":0},"unopened":[],"bounds":{"document_bytes":16777216,"sheet_cells":100000,"rows_first":2000,"rows_last":500,"rows_between":2000,"halvings":0,"cell_chars":16384,"cell_head_chars":4096},"cells_cut":0,"cells_raw":0,"read":"whole","date_system":"1900"}

{"sheet":"Génie-TI","index":0,"n_rows":72,"n_cols":12,"rows_kept":72,"cut":false,"hidden":false,"merged":[[0,0,0,11]]}
["Budget du projet"]
[]
["Nature de la dépense","Description de la dépense","Barèmes","Coût unitaire","Unité","Unité","Unité","Montant demandé avant taxes","Taux de remboursement","Taxes (100 %)","Montant demandé","Montant proposé"]
["Adaptation"]
["Honoraires professionnels pour l'adaptation de contenu de formation ",null,"Maximum de 150 $/h",null,null,null,null,{"$f":"D5*E5*F5*G5","v":0},1,{"$f":"0.14975*(D5*E5*F5*G5)","v":0},{"$f":"H5*I5","v":0},{"$f":"(D5*E5*F5*G5)*I5","v":0}]
["Salaire de base des experts",null,"Maximum de 150 $/h",null,null,null,null,0,1,null,0,0]
["Déplacement des experts",null,"Barèmes du Conseil du trésor",null,null,null,null,0,1,null,{"$f":"H7*I7","v":0},{"$f":"(D7*E7*F7*G7)*I7","v":0}]
["Hébergement des experts",null,"Coût réel",null,null,null,null,0,1,{"$f":"0.14975*(D8*E8*F8*G8)","v":0},0,{"$f":"(D8*E8*F8*G8)*I8","v":0}]
["Frais de repas des experts",null,"Barèmes du Conseil du trésor",null,null,null,null,0,1,null,0,{"$f":"(D9*E9*F9*G9)*I9","v":0}]
["Révision linguistique",null,"Coût réel",null,null,null,null,0,1,0,0,{"$f":"(D10*E10*F10*G10)*I10","v":0}]
["Graphisme",null,"Coût réel",null,null,null,null,0,1,0,0,{"$f":"(D11*E11*F11*G11)*I11","v":0}]
["Frais d'infographie",null,"Coût réel",null,null,null,null,0,1,0,0,{"$f":"(D12*E12*F12*G12)*I12","v":0}]
["Les frais encourus pour l’adaptation du matériel pédagogique selon la nature du handicap",null,"Coût réel",null,null,null,null,0,1,0,0,{"$f":"(D13*E13*F13*G13)*I13","v":0}]
["Diffusion (Autres formations)"]
["Dépenses liées à la formation des superviseurs de stage"]
["Honoraires professionnels du formateur",null,"Maximum de 150 $/h",null,null,null,null,{"$f":"D16*E16*F16*G16","v":0},0.5,{"$f":"0.14975*(D16*E16*F16*G16)","v":0},{"$f":"H16*I16","v":0},{"$f":"(D16*E16*F16*G16)*I16","v":0}]
["Salaire de base des participants",null,"Maximum de 25 $/h",null,null,null,null,0,0.5,null,0,{"$f":"(D17*E17*F17*G17)*I17","v":0}]
["Déplacement du formateur",null,"Barèmes du Conseil du trésor",null,null,null,null,0,0.5,null,0,{"$f":"(D18*E18*F18*G18)*I18","v":0}]
["Déplacement des participants ",null,"Barèmes du Conseil du trésor",null,null,null,null,0,0.5,null,0,{"$f":"(D19*E19*F19*G19)*I19","v":0}]
["Hébergement du formateur",null,"Coût réel",null,null,null,null,0,0.5,{"$f":"0.14975*(D20*E20*F20*G20)","v":0},0,{"$f":"(D20*E20*F20*G20)*I20","v":0}]
["Hébergement des participants ",null,"Coût réel",null,null,null,null,0,0.5,{"$f":"0.14975*(D21*E21*F21*G21)","v":0},0,{"$f":"(D21*E21*F21*G21)*I21","v":0}]
["Frais de repas du formateur",null,"Barèmes du Conseil du trésor",null,null,null,null,0,0.5,null,0,{"$f":"(D22*E22*F22*G22)*I22","v":0}]
["Frais de repas des participants ",null,"Barèmes du Conseil du trésor",null,null,null,null,0,0.5,null,0,{"$f":"(D23*E23*F23*G23)*I23","v":0}]
["Matériel pédagogique",null,"Coût réel",null,null,null,null,0,0.5,{"$f":"0.14975*(D24*E24*F24*G24)","v":0},0,{"$f":"(D24*E24*F24*G24)*I24","v":0}]
["Location de salle incluant le matériel audiovisuel",null,"Coût réel",null,null,null,null,0,0.5,{"$f":"0.14975*(D25*E25*F25*G25)","v":0},0,{"$f":"(D25*E25*F25*G25)*I25","v":0}]
["Honoraire professionnels du superviseur de stage indépendant",null,"Maximum de 150 $/h",null,null,null,null,0,1,{"$f":"0.14975*(D26*E26*F26*G26)","v":0},0,{"$f":"(D26*E26*F26*G26)*I26","v":0}]
["Dépenses liées aux examens d’équivalence nécessaires avant de commencer la formation"]
["Frais du test de classement",null,"Coût réel",null,null,null,null,{"$f":"D28*E28*F28*G28","v":0},1,{"$f":"0.14975*(D28*E28*F28*G28)","v":0},{"$f":"H28*I28","v":0},{"$f":"(D28*E28*F28*G28)*I28","v":0}]
["Salaire des participants (test de classement) ",null,"Maximum de 25 $/h",null,null,null,null,{"$f":"D29*E29*F29*G29","v":0},1,null,{"$f":"H29*I29","v":0},{"$f":"(D29*E29*F29*G29)*I29","v":0}]
["Dépenses liées aux cours d’appoint en formation de base nécessaire à la réussite de la formation du travailleur (numératie, littératie, francisation)"]
["Honoraires professionnels du formateur",null,"Maximum de 150 $/h",null,null,null,null,{"$f":"D31*E31*F31*G31","v":0},1,{"$f":"0.14975*(D31*E31*F31*G31)","v":0},{"$f":"H31*I31","v":0},{"$f":"(D31*E31*F31*G31)*I31","v":0}]
["Salaire des participants",null,"Maximum de 25 $/h",null,null,null,null,{"$f":"D32*E32*F32*G32","v":0},1,null,{"$f":"H32*I32","v":0},{"$f":"(D32*E32*F32*G32)*I32","v":0}]
["Diffusion (COUD)"]
["Honoraires et salaires"]
["Honoraires professionnels du formateur",null,"Maximum de 150 $/h",null,null,null,null,{"$f":"D35*E35*F35*G35","v":0},1,{"$f":"0.14975*(D35*E35*F35*G35)","v":0},{"$f":"H35*I35","v":0},{"$f":"(D35*E35*F35*G35)*I35","v":0}]
["Salaire de la personne affectée au soutien à la réussite",null,"Maximum de 65 $/h",null,null,null,null,{"$f":"D36*E36*F36*G36","v":0},1,null,0,{"$f":"(D36*E36*F36*G36)*I36","v":0}]
["Honoraires ou salaire d’un professionnel attitré à l’intégration en emploi d’un nouvel employé faisant partie des personnes sous-représentées sur le marché du travail (lorsque le salaire ne fait pas l’objet d’une aide gouvernementale)",null,"Maximum de 65 $/h",null,null,null,null,{"$f":"D37*E37*F37*G37","v":0},1,null,{"$f":"H37*I37","v":0},{"$f":"(D37*E37*F37*G37)*I37","v":0}]
["Honoraires professionnels liés à l'accompagnement et à l'interprétation de la formation de personnes sourdes et malentendantes",null,"Maximum de 150 $/h",null,null,null,null,{"$f":"D38*E38*F38*G38","v":0},1,{"$f":"0.14975*(D38*E38*F38*G38)","v":0},{"$f":"H38*I38","v":0},{"$f":"(D38*E38*F38*G38)*I38","v":0}]
["Salaire de base des participants (le nombre des participants doit être inscrit uniquement dans la case de la colonne E)",null,"Maximum de 30 $/h",null,null,null,null,{"$f":"IF(D39*E39*F39*G39<25000*F39,D39*E39*F39*G39,25000*F39)","v":0},1,null,0,{"$f":"IF(D39*E39*F39*G39<25000*F39,D39*E39*F39*G39,25000*F39)","v":0}]
["Diffusion Incitatif pour la participation des femmes"]
["Salaire de base des participantes (le nombre des participantes doit être inscrit uniquement dans la case de la colonne E)",null,"Maximum de 30 $/h",null,null,null,null,{"$f":"IF(D41*E41*F41*G41<30000*F41,D41*E41*F41*G41,30000*F41)","v":0},1,null,0,{"$f":"IF(D41*E41*F41*G41<30000*F41,D41*E41*F41*G41,30000*F41)","v":0}]
["Honoraire profesionnel de la mentore",null,"Maximum de 150 $/h",null,null,null,null,{"$f":"D42*E42*F42*G42","v":0},1,{"$f":"0.14975*(D42*E42*F42*G42)","v":0},0,{"$f":"D42*E42*F42*G42*I42","v":0}]
["Honoraires professionnels du formateur pour la formation favorisant l'intégration des femmes en TI",null,"Maximum de 150 $/h",null,null,null,null,{"$f":"D43*E43*F43*G43","v":0},1,{"$f":"0.14975*(D43*E43*F43*G43)","v":0},0,{"$f":"D43*E43*F43*G43*I43","v":0}]
["Salaire des participants pour la formation favorisant l'intégration des femmes",null,"Maximum de 30 $/h",null,null,null,null,{"$f":"D44*E44*F44*G44","v":0},1,null,0,0]
["Déplacement"]
["Déplacement du formateur",null,"Barèmes du Conseil du trésor",null,null,null,null,{"$f":"D46*E46*F46*G46","v":0},1,null,{"$f":"H46*I46","v":0},{"$f":"(D46*E46*F46*G46)*I46","v":0}]
["Déplacement des participants ",null,"Barèmes du Conseil du trésor",null,null,null,null,0,1,null,0,{"$f":"(D47*E47*F47*G47)*I47","v":0}]
["Autres frais de déplacement (à préciser)",null,"Barèmes du Conseil du trésor",null,null,null,null,0,1,{"$f":"0.14975*(D48*E48*F48*G48)","v":0},0,{"$f":"(D48*E48*F48*G48)*I48","v":0}]
["Autres frais de déplacement (à préciser)",null,"Barèmes du Conseil du trésor",null,null,null,null,0,1,{"$f":"0.14975*(D49*E49*F49*G49)","v":0},0,{"$f":"(D49*E49*F49*G49)*I49","v":0}]
["Hébergement"]
["Hébergement du formateur",null,"Coût réel",null,null,null,null,0,1,{"$f":"0.14975*(D51*E51*F51*G51)","v":0},{"$f":"H51*I51","v":0},{"$f":"(D51*E51*F51*G51)*I51","v":0}]
["Hébergement des participants ",null,"Coût réel",null,null,null,null,0,1,{"$f":"0.14975*(D52*E52*F52*G52)","v":0},0,{"$f":"(D52*E52*F52*G52)*I52","v":0}]
["Frais de repas"]
["Frais de repas du formateur",null,"Barèmes du Conseil du trésor",null,null,null,null,{"$f":"D54*E54*F54*G54","v":0},1,null,{"$f":"H54*I54","v":0},{"$f":"(D54*E54*F54*G54)*I54","v":0}]
["Frais de repas des participants",null,"Barèmes du Conseil du trésor",null,null,null,null,0,1,null,0,{"$f":"(D55*E55*F55*G55)*I55","v":0}]
["Matériel pédagogique"]
["Matériel pédagogique",null,"Coût réel",null,null,null,null,0,1,{"$f":"0.14975*(D57*E57*F57*G57)","v":0},{"$f":"H57*I57","v":0},{"$f":"(D57*E57*F57*G57)*I57","v":0}]
["Frais d'impression",null,"Coût réel",null,null,null,null,0,1,0,0,{"$f":"(D58*E58*F58*G58)*I58","v":0}]
["Équipement"]
["Location de salles et de matériels audiovisuels",null,"Coût réel",null,null,null,null,0,1,{"$f":"0.14975*(D60*E60*F60*G60)","v":0},{"$f":"H60*I60","v":0},{"$f":"(D60*E60*F60*G60)*I60","v":0}]
["Location d'équipements",null,"Coût réel",null,null,null,null,0,1,0,0,{"$f":"(D61*E61*F61*G61)*I61","v":0}]
["Contribution financière du Ministère de l'Éducation et de l'Enseignement supérieur"]
["Dépenses liées à l'administration du projet par le promoteur"]
["Salaire de base du chargé de projets",null,"Coût réel",null,null,null,null,{"$f":"D64*E64*F64*G64","v":0},1,null,{"$f":"H64*I64","v":0},{"$f":"(D64*E64*F64*G64)*I64","v":0}]
["Déplacement du chargé de projets",null,"Barèmes du Conseil du trésor",null,null,null,null,{"$f":"D65*E65*F65*G65","v":0},1,null,{"$f":"H65*I65","v":0},{"$f":"(D65*E65*F65*G65)*I65","v":0}]
["Hébergement du chargé de projets",null,"Coût réel",null,null,null,null,{"$f":"D66*E66*F66*G66","v":0},1,{"$f":"0.14975*(D66*E66*F66*G66)","v":0},{"$f":"H66*I66","v":0},{"$f":"(D66*E66*F66*G66)*I66","v":0}]
["Frais de repas du chargé de projets",null,"Barèmes du Conseil du trésor",null,null,null,null,{"$f":"D67*E67*F67*G67","v":0},1,null,{"$f":"H67*I67","v":0},{"$f":"(D67*E67*F67*G67)*I67","v":0}]
["Promotion",null,"Coût réel",null,null,null,null,{"$f":"D68*E68*F68*G68","v":0},1,{"$f":"0.14975*(D68*E68*F68*G68)","v":0},0,{"$f":"(D68*E68*F68*G68)*I68","v":0}]
["Frais d'administration (maximum 10 % du montant versé excluant le remboursement des salaires et incluant la contribution du ministère de l'Éducation et de l'Enseignement supérieur)",null,null,null,null,null,null,null,null,null,{"$f":"((SUM(K5:K68)+H62-K39-K41)*0.1)","v":0},{"$f":"((SUM(L5:L68)+H62-L39-L41)*0.1)","v":0}]
["Taxes"]
["Remboursement des taxes admissibles",null,null,null,null,null,null,null,null,{"$f":"SUM(J5:J69)","v":0},{"$f":"J71*0.5","v":0},{"$f":"J71*0.5","v":0}]
["Total",null,null,null,null,null,null,null,null,null,{"$f":"SUM(K5:K71)","v":0},{"$f":"SUM(L5:L71)","v":0}]

{"sheet":"Instructions","index":1,"n_rows":35,"n_cols":10,"rows_kept":35,"cut":false,"hidden":false,"merged":[[0,0,0,10],[32,0,32,10],[26,0,26,10],[29,0,29,10],[30,0,30,10],[31,0,31,10],[27,0,27,10],[28,0,28,10],[17,0,17,10],[16,0,16,10],[18,0,18,10],[2,0,2,10],[5,0,5,10],[6,0,6,10],[7,0,7,10],[25,0,25,10],[4,0,4,10],[34,0,34,4],[34,7,34,8],[19,0,19,10],[9,0,9,10],[8,0,8,10],[11,0,11,10],[13,0,13,10],[14,0,14,10],[15,0,15,10],[10,0,10,10],[23,0,23,10],[24,0,24,10],[20,0,20,10],[21,0,21,10],[22,0,22,10]]}
["Instructions relatives au budget du projet"]
[]
["1. Barèmes du programme "]
[]
["Coût réel: Lorsque le barème prévoit qu'il s'agit du coût réel, le caractère raisonnable de la dépense et l'effort du promoteur pour la recherche du meilleur prix seront pris en considération pour définir le coût admissible à la subvention.\n"]
["Honoraires professionnels : Selon la complexité des travaux à accomplir, le remboursement des dépenses pourrait atteindre 150 $ l’heure. De manière, exceptionnelle, il peut atteindre 150 $/h."]
["Salaire de base des participants (formation de superviseur de stage) : jusqu’à un maximum de 25 $ l’heure par participant après application du taux de remboursement."]
["Salaire de base des participants (lors du test de classement) : jusqu’à un maximum de 25 $ l’heure par participant."]
["Salaire de base des participants (lors des formations d’appoint en formation de base — numératie, littératie, francisation) : jusqu’à un maximum de 25 $ l’heure par participant."]
["Salaire de base des participants (formation régulière) : Le salaire horaire est remboursé jusqu’à un maximum de 30 $ l’heure par participant jusqu’à un maximum de 25 000 $ par participant et de 30 000 $ par participante."]
[]
["3. Instructions concernant les colonnes"]
[]
["Nature de la dépense"]
["Les dépenses admissibles sont présentées par catégorie : Élaboration ou adaptation, Diffusion, Déplacement, Hébergement, Matériel didactique, Autres dépenses liées à la réalisation du projet et Dépenses liées à l’administration du projet par le promoteur. Il est important de ne pas changer l’appellation des postes budgétaires."]
["Veuillez remplir seulement les lignes qui concernent les postes budgétaires visés par votre demande de subvention. "]
[]
["Description de la dépense"]
["Pour chaque catégorie de dépenses (taux horaire des formateurs et des participants, coût par participant pour le matériel didactique, coût par kilomètre pour les frais de déplacement, coût par jour pour les frais d’hébergement et la location de salle, etc.), inscrire le détail des calculs en utilisant les unités de mesure appropriées. Voici des exemples :"]
[]
["Honoraires professionnels : 90 $/h x 16 h x 2 groupes"]
["Salaire de base des participants : 13,10 $/h x 16 h x 12 participants"]
["Déplacement du formateur : 0,635 $/km x 600 km x 2 déplacements"]
[]
["Coût unitaire"]
["Le coût unitaire doit être inscrit en dollars ($). Il s’agit du premier facteur de la multiplication présentée dans la colonne Description de la dépense (voir les exemples ci-dessus)."]
[]
["Unité"]
["Inscrire les autres facteurs de la multiplication. Dans les cases laissées vides, inscrire le chiffre 1."]
[]
["Taxes (100 %)"]
["Les taxes sont calculées automatiquement pour les dépenses taxables. La portion remboursable des taxes est calculée automatiquement à la ligne Remboursement des taxes admissibles. Il est présumé que le promoteur recevra un remboursement de Revenu Québec à hauteur de 50%. Ainsi, le montant prévu par l'aide financière est le montant restant à la charge du promoteur (50%). Si l'assujettissement de votre organisme diffère, ce taux peut être modifié selon les pièces présentées au soutien de votre demande.\nÀ la reddition de comptes de votre projet, il est attendu que le promoteur déclare son assujettissement à la TPS/TVH et à la TVQ. Le taux déclaré sera considéré pour déterminer les taxes admissibles à l'aide financière en permettant un dépassement du montant accordé jusqu'à concurrence du trop versé calculé pour le reste des postes budgétaires. Aucun montant supplémentaire à l’aide financière accordée ne pourra donc être spécifiquement versé pour rembourser l’ensemble des taxes; ce remboursement ne pourra être couvert que par l’aide financière accordée."]
[]
[]
["Document préparé par la Direction du soutien au développement de la main-d’œuvre et la Direction du développement de la main-d'oeuvre en soutien aux promoteurs qui établissent le montant de la subvention.",null,null,null,null,null,null,"Date de mise à jour",null,"2025-04-01"]